[Event "Austrian Championship Girls-U14 2024"]
[Site "Fuerstenfeld"]
[Date "2024.06.02"]
[Round "7.2"]
[White "Brunner, Josephina Akiko"]
[Black "Huber, Elisa"]
[Result "1-0"]
[ECO "C55"]
[WhiteElo "1744"]
[BlackElo "1633"]
[Annotator "NA RC"]
[PlyCount "109"]
[EventDate "2024.05.28"]
[EventType "swiss"]
[EventCountry "AUT"]
[SourceTitle "playchess.com"]
[Source "ChessBase"]
[SourceQuality "1"]
[TimeControl "5400+30"]

1. e4 {[%emt 0:00:03]} e5 {[%emt 0:00:05]} 2. Bc4 {[%emt 0:00:12]} Nf6 {[%emt 0:00:18]} 3. d3 {[%emt 0:00:26]} Nc6 {[%emt 0:01:04]} 4. Nf3 {[%emt 0:00:54]} Be7 {[%emt 0:01:00]} 5. O-O {[%emt 0:01:09]} d6 {[%emt 0:01:19]} 6. c3 {[%emt 0:01:15]} Bg4 {[%emt 0:01:36]} 7. h3 {[%emt 0:01:25]} Bh5 {[%emt 0:00:35]} 8. Nbd2 {[%emt 0:01:09]} h6 {[%emt 0:02:53]} 9. Qc2 {[%emt 0:17:24]} g5 {[%emt 0:05:51]} 10. Nh2 {[%emt 0:04:30]} Qc8 {[%emt 0:05:42]} 11. Re1 {[%emt 0:06:15]} g4 {[%emt 0:02:46]} 12. h4 {[%emt 0:02:35]} Nh7 {[%emt 0:14:19]} 13. g3 {[%emt 0:01:46]} Rg8 {[%emt 0:01:58]} 14. Ndf1 {[%emt 0:03:16]} Rg6 {[%emt 0:08:52]} 15. Be3 {[%emt 0:17:39]} f5 {[%emt 0:06:35]} 16. exf5 {[%emt 0:05:07]} Qxf5 {[%emt 0:00:39]} 17. Qd2 {[%emt 0:02:37]} Qf8 {[%emt 0:03:56]} 18. d4 {[%emt 0:03:49]} exd4 {[%emt 0:04:38]} 19. Bxd4 {[%emt 0:00:29]} O-O-O {[%emt 0:03:04]} 20. Bd3 {[%emt 0:02:29]} Nxd4 {[%emt 0:03:39]} 21. Bxg6 {[%emt 0:00:56]} Bxg6 {[%emt 0:00:59]} 22. Qxd4 {[%emt 0:00:51]} h5 {[%emt 0:02:39]} 23. Qxa7 {[%emt 0:01:10]} c5 {[%emt 0:02:31]} 24. Qa4 {[%emt 0:04:00]} Qg7 {[%emt 0:01:56]} 25. Qc4 {[%emt 0:01:23]} d5 {[%emt 0:02:38]} 26. Qe2 {[%emt 0:01:49]} Bf6 {[%emt 0:01:16]} 27. Rad1 {[%emt 0:03:31]} Bf7 {[%emt 0:03:15]} 28. Ne3 {[%emt 0:02:26]} Be6 {[%emt 0:04:28]} 29. Nc4 {[%emt 0:02:17]} Nf8 {[%emt 0:00:50]} 30. Nb6+ {[%emt 0:01:10]} Kb8 {[%emt 0:01:28]} 31. Qb5 {[%emt 0:01:19]} Be7 {[%emt 0:02:56]} 32. Qe2 {[%emt 0:01:15]} Bf6 {[%emt 0:00:50]} 33. Na4 {[%emt 0:00:53]} Be7 {[%emt 0:02:40]} 34. Qe5+ {[%emt 0:00:35]} Qxe5 {[%emt 0:00:08]} 35. Rxe5 {[%emt 0:00:02]} Ka7 {[%emt 0:01:31]} 36. b3 {[%emt 0:01:03]} b5 {[%emt 0:00:43]} 37. Nb2 {[%emt 0:00:19]} Bf6 {[%emt 0:00:41]} 38. Re2 {[%emt 0:02:36]} Bxc3 {[%emt 0:00:53]} 39. Nd3 {[%emt 0:00:27]} Kb6 {[%emt 0:02:35]} 40. Nf4 {[%emt 0:00:25]} Bf7 {[%emt 0:00:52]} 41. Re7 {[%emt 0:00:09]} d4 {[%emt 0:01:29]} 42. Rxf7 {[%emt 0:00:38]} Ka5 {[%emt 0:00:52]} 43. Nd3 {[%emt 0:02:19]} Nd7 {[%emt 0:01:22]} 44. Rf5 {[%emt 0:01:06]} Kb6 {[%emt 0:00:39]} 45. Rxh5 {[%emt 0:01:14]} c4 {[%emt 0:00:40]} 46. bxc4 {[%emt 0:00:16]} bxc4 {[%emt 0:00:07]} 47. Nf4 {[%emt 0:00:42]} Nc5 {[%emt 0:01:21]} 48. Rxc5 {[%emt 0:01:43]} Kxc5 {[%emt 0:00:07]} 49. Ne6+ {[%emt 0:00:03]} Kd6 {[%emt 0:00:06]} 50. Nxd8 {[%emt 0:00:06]} d3 {[%emt 0:00:56]} 51. Nxg4 {[%emt 0:00:11]} Bb4 {[%emt 0:00:59]} 52. Nf7+ {[%emt 0:00:32]} Kc5 {[%emt 0:00:10]} 53. Nfe5 {[%emt 0:00:14]} Kb5 {[%emt 0:00:43]} 54. Nxd3 {[%emt 0:00:11]} cxd3 {[%emt 0:00:06]} 55. Rxd3 {[%emt 0:00:03]} 1-0

[Event "Austrian Championship Girls-U14 2024"]
[Site "Fuerstenfeld"]
[Date "2024.06.02"]
[Round "7.4"]
[White "Turdiyeva, Maryam"]
[Black "Wang, Yihan"]
[Result "1-0"]
[ECO "D37"]
[WhiteElo "1682"]
[BlackElo "1516"]
[Annotator "NA RC"]
[PlyCount "133"]
[EventDate "2024.05.28"]
[EventType "swiss"]
[EventCountry "AUT"]
[SourceTitle "playchess.com"]
[Source "ChessBase"]
[SourceQuality "1"]
[TimeControl "5400+30"]

1. d4 {[%emt 0:00:06]} d5 {[%emt 0:00:09]} 2. c4 {[%emt 0:00:24]} e6 {[%emt 0:00:28]} 3. Nc3 {[%emt 0:00:22]} Nf6 {[%emt 0:00:47]} 4. Nf3 {[%emt 0:00:12]} Be7 {[%emt 0:00:58]} 5. Bf4 {[%emt 0:00:32]} a6 {[%emt 0:01:22]} 6. e3 {[%emt 0:00:20]} O-O {[%emt 0:01:03]} 7. Be2 {[%emt 0:00:52]} b6 {[%emt 0:01:23]} 8. O-O {[%emt 0:00:47]} Bb7 {[%emt 0:01:00]} 9. Rc1 {[%emt 0:01:12]} Nbd7 {[%emt 0:01:59]} 10. a3 {[%emt 0:03:45]} c5 {[%emt 0:04:02]} 11. dxc5 {[%emt 0:02:45]} bxc5 {[%emt 0:01:53]} 12. Qb3 {[%emt 0:11:00]} Bc6 {[%emt 0:08:07]} 13. Rfd1 {[%emt 0:03:38]} Qb6 {[%emt 0:06:20]} 14. Qxb6 {[%emt 0:03:12]} Nxb6 {[%emt 0:00:15]} 15. cxd5 {[%emt 0:01:04]} exd5 {[%emt 0:01:37]} 16. Ne5 {[%emt 0:06:26]} Bb7 {[%emt 0:08:27]} 17. Bf3 {[%emt 0:02:56]} Rac8 {[%emt 0:04:13]} 18. Bg5 {[%emt 0:09:07]} Rc7 {[%emt 0:10:45]} 19. Bf4 {[%emt 0:15:13]} Rcc8 {[%emt 0:04:03]} 20. Ng4 {[%emt 0:04:22]} Rfd8 {[%emt 0:08:42]} 21. Nxf6+ {[%emt 0:04:21]} Bxf6 {[%emt 0:00:20]} 22. Bg4 {[%emt 0:01:38]} Rc6 {[%emt 0:03:01]} 23. Rc2 {[%emt 0:11:26]} Bxc3 {[%emt 0:04:10]} 24. Rxc3 {[%emt 0:01:11]} Bc8 {[%emt 0:02:12]} 25. Bf3 {[%emt 0:01:17]} Be6 {[%emt 0:03:02]} 26. b4 {[%emt 0:08:49]} c4 {[%emt 0:02:39]} 27. Rd4 {[%emt 0:01:23]} Rdc8 {[%emt 0:02:29]} 28. e4 {[%emt 0:01:26]} Rd8 {[%emt 0:01:16]} 29. Rc1 {[%emt 0:00:54]} c3 {[%emt 0:03:05]} 30. exd5 {[%emt 0:01:17]} Bxd5 {[%emt 0:02:21]} 31. Rd3 {[%emt 0:00:53]} Rcc8 {[%emt 0:02:32]} 32. Rcxc3 {[%emt 0:01:08]} Rxc3 {[%emt 0:02:46]} 33. Rxc3 {[%emt 0:00:02]} Bxf3 {[%emt 0:00:28]} 34. gxf3 {[%emt 0:00:10]} Nd5 {[%emt 0:01:59]} 35. Rd3 {[%emt 0:01:10]} Kf8 {[%emt 0:00:26]} 36. Bg3 {[%emt 0:00:32]} Ke7 {[%emt 0:00:58]} 37. Rd4 {[%emt 0:00:19]} Nf6 {[%emt 0:01:03]} 38. Rxd8 {[%emt 0:00:42]} Kxd8 {[%emt 0:00:06]} 39. Bh4 {[%emt 0:00:33]} Kc7 {[%emt 0:00:36]} 40. Bxf6 {[%emt 0:00:46]} gxf6 {[%emt 0:00:08]} 41. Kg2 {[%emt 0:00:18]} Kc6 {[%emt 0:00:24]} 42. a4 {[%emt 0:00:09]} Kd5 {[%emt 0:00:22]} 43. Kg3 {[%emt 0:00:16]} Kc4 {[%emt 0:00:15]} 44. b5 {[%emt 0:00:07]} axb5 {[%emt 0:00:18]} 45. axb5 {[%emt 0:00:13]} Kxb5 {[%emt 0:00:06]} 46. Kf4 {[%emt 0:00:09]} Kc6 {[%emt 0:00:11]} 47. Kf5 {[%emt 0:00:13]} Kd7 {[%emt 0:00:28]} 48. Kxf6 {[%emt 0:00:07]} Ke8 {[%emt 0:00:11]} 49. Kg7 {[%emt 0:00:33]} h5 {[%emt 0:00:23]} 50. h4 {[%emt 0:00:08]} Ke7 {[%emt 0:00:12]} 51. f4 {[%emt 0:00:28]} Ke6 {[%emt 0:00:32]} 52. Kh6 {[%emt 0:00:55]} Kf5 {[%emt 0:01:03]} 53. Kxh5 {[%emt 0:00:20]} Kxf4 {[%emt 0:00:20]} 54. Kh6 {[%emt 0:00:17]} Kg4 {[%emt 0:02:23]} 55. h5 {[%emt 0:01:12]} Kh4 {[%emt 0:00:57]} 56. f3 {[%emt 0:00:47]} f5 {[%emt 0:00:44]} 57. Kg6 {[%emt 0:00:37]} f4 {[%emt 0:00:17]} 58. h6 {[%emt 0:00:45]} Kg3 {[%emt 0:00:09]} 59. h7 {[%emt 0:00:04]} Kxf3 {[%emt 0:00:07]} 60. h8=Q {[%emt 0:00:14]} Ke2 {[%emt 0:00:10]} 61. Qe5+ {[%emt 0:00:50]} Kf3 {[%emt 0:00:09]} 62. Kf5 {[%emt 0:00:20]} Kg2 {[%emt 0:00:10]} 63. Qxf4 {[%emt 0:00:07]} Kh3 {[%emt 0:00:08]} 64. Qg4+ {[%emt 0:00:20]} Kh2 {[%emt 0:00:07]} 65. Kf4 {[%emt 0:00:05]} Kh1 {[%emt 0:00:07]} 66. Kf3 {[%emt 0:00:05]} Kh2 {[%emt 0:00:06]} 67. Qg2# {[%emt 0:00:34]} 1-0